bitfinex/quotes_ETHUSD_20250424
["timestamp","ask_amount","ask_price","bid_price","bid_amount"]
[1745527180182,11.32608583,1765.9,1765.7,4.743]
[1745527180879,5.66315551,1765.8,1765.7,4.743]
[1745527185136,5.66297871,1765.9,1765.7,4.743]
[1745527186032,6.08582585,1766.0,1765.7,4.743]
[1745527186353,6.08582585,1766.0,1765.8,0.8185]
[1745527186996,11.74859817,1766.0,1765.8,0.8185]
[1745527187397,11.74857181,1766.0,1765.8,0.8185]
[1745527187734,5.66283481,1765.9,1765.7,4.743]
[1745527187895,5.66315551,1765.8,1765.7,4.743]
[1745527188090,5.66368025,1765.7,1765.4,5.5605]
[1745527188311,2.99100613,1765.8,1765.4,4.742]
[1745527188506,5.66411781,1765.5,1765.4,4.742]
[1745527188848,0.7862,1765.5,1765.0,16.994]
[1745527188995,5.66489067,1765.3,1765.1,4.742]
[1745527189201,5.6645281,1765.4,1765.1,4.742]
[1745527189843,6.09862439,1765.4,1765.1,4.742]
[1745527191337,6.09862439,1765.4,1765.1,10.4072966]
[1745527191338,6.09855235,1765.4,1765.1,10.4072966]
[1745527191505,6.09855235,1765.4,1765.1,4.742]
[1745527196046,11.76330562,1765.4,1765.1,4.742]
[1745527196201,12.54950562,1765.4,1765.1,4.742]
[1745527196737,5.66489885,1765.3,1765.1,4.742]
[1745527197101,5.66489885,1765.3,1764.8,5.4913]
[1745527197300,5.6660434,1764.9,1764.8,4.741]
[1745527197512,5.66596985,1765.0,1764.8,4.741]
[1745527199068,5.6660434,1764.9,1764.8,4.741]
[1745527200375,8.65764031,1764.9,1764.8,4.741]
[1745527200551,5.66700668,1764.6,1764.5,0.5]
[1745527200952,5.66689946,1764.7,1764.5,0.5]
[1745527201262,5.66700668,1764.6,1764.5,0.5]
[1745527202586,5.66687106,1764.7,1764.5,0.5]
[1745527202952,11.33387299,1764.7,1764.5,0.5]
[1745527203147,5.66700668,1764.6,1764.5,0.5]
[1745527205385,6.44480668,1764.6,1764.5,0.5]
[1745527206091,7.10025836,1764.7,1764.5,0.5]
[1745527206252,5.66700668,1764.6,1764.5,0.5]
[1745527208417,9.44428123,1764.8,1764.5,0.5]
[1745527208585,7.21665634,1764.9,1764.6,5.66684952]
[1745527208586,0.41734638,1764.9,1764.6,5.66684952]
[1745527208775,3.0,1764.9,1764.6,5.66684952]
[1745527208975,0.4308034,1764.9,1764.6,11.33366677]
[1745527209193,6.73778497,1765.1,1764.7,5.66666936]
[1745527209390,5.66576279,1765.0,1764.6,5.66681725]
[1745527209709,5.66623585,1764.9,1764.5,7.50057633]
[1745527210003,5.66623585,1764.9,1764.6,5.6669878]
[1745527211283,5.66637452,1764.8,1764.5,7.50057633]
[1745527211472,5.66689037,1764.7,1764.5,1.3092]
[1745527211672,5.66636446,1764.8,1764.5,1.3092]
[1745527212378,5.66636446,1764.8,1764.5,6.97650198]
[1745527212570,6.45205606,1765.0,1764.6,5.66697517]
[1745527212766,5.66585606,1765.0,1764.7,5.66664946]
[1745527213006,5.66585606,1765.0,1764.6,5.66697517]
[1745527213007,5.66585606,1765.0,1764.6,5.66678204]
[1745527213201,5.66606089,1764.9,1764.6,5.66678204]
[1745527213404,5.66606089,1764.9,1764.6,6.9310997]
[1745527214780,5.66585606,1765.0,1764.6,6.9310997]
[1745527214980,11.33183631,1765.0,1764.6,6.9310997]
[1745527216214,1.0722071,1765.1,1764.7,5.66661991]
[1745527216411,5.66556886,1765.1,1764.8,0.7995]
[1745527216912,8.66564639,1765.1,1764.8,0.7995]
[1745527217113,8.66564639,1765.1,1764.8,6.46585165]
[1745527217598,8.66564639,1765.1,1764.8,0.7995]
[1745527217802,5.66564639,1765.1,1764.8,0.7995]
[1745527218011,5.66564639,1765.1,1764.8,6.46586213]
[1745527219021,5.66564639,1765.1,1764.8,6.46584533]
[1745527219820,5.66564639,1765.1,1764.8,11.20884533]
[1745527221319,5.66594444,1765.0,1764.8,4.743]
[1745527222120,11.33192054,1765.0,1764.8,4.743]
[1745527222317,5.66594444,1765.0,1764.8,4.743]
[1745527224032,5.6660434,1764.9,1764.8,4.743]
[1745527225644,11.33194095,1765.0,1764.8,4.743]
[1745527225847,12.69352674,1765.0,1764.8,4.743]
[1745527226444,7.02753023,1765.0,1764.8,4.743]
[1745527226851,12.69355989,1765.0,1764.8,4.743]
[1745527227446,5.6660434,1764.9,1764.8,4.743]
[1745527228149,7.02753023,1765.0,1764.8,4.743]
[1745527229346,5.66594444,1765.0,1764.8,4.743]
[1745527229947,13.61514079,1765.1,1764.7,10.40867158]
[1745527230511,3.0,1765.2,1764.8,6.4192826]
[1745527230716,14.33061221,1765.2,1764.8,6.4192826]
[1745527231034,14.33060696,1765.2,1764.8,6.4192826]
[1745527231546,14.33060696,1765.2,1764.9,0.1785507]
[1745527231721,14.33060696,1765.2,1764.8,6.4192826]
[1745527232046,5.66540139,1765.1,1765.0,0.18946102]
[1745527232246,5.66540139,1765.1,1764.9,0.18954701]
[1745527232549,5.66540139,1765.1,1765.0,0.18946102]
[1745527232925,5.66540139,1765.1,1764.8,6.4192826]
[1745527233125,5.66540139,1765.1,1765.0,0.18946102]
[1745527233362,5.66540139,1765.1,1764.9,0.18954701]
[1745527233539,5.66540139,1765.1,1764.8,6.4192826]
[1745527233862,5.66540139,1765.1,1765.0,0.18946102]
[1745527234024,5.66540139,1765.1,1764.9,0.18954701]
[1745527234226,5.66540139,1765.1,1765.0,0.18946102]
[1745527234655,5.66540139,1765.1,1764.8,6.4192826]
[1745527234841,5.66540139,1765.1,1765.0,0.18946102]
[1745527235045,5.66540139,1765.1,1764.9,0.18954701]
[1745527235250,5.66540139,1765.1,1765.0,0.18946102]
[1745527235664,1.08161623,1765.3,1764.8,0.7531]
[1745527235861,0.43409629,1765.4,1765.1,6.47555449]
[1745527236177,5.66391936,1765.6,1765.2,6.50070573]
[1745527236178,3.0,1765.5,1765.2,6.50070573]
[1745527236460,3.0,1765.5,1765.2,11.51803967]
[1745527236666,3.0,1765.5,1765.2,11.51801811]
[1745527236870,3.0,1765.5,1765.2,5.8531403]
[1745527238263,3.42843306,1765.5,1765.2,5.8531403]
[1745527238931,9.0927223,1765.5,1765.2,0.18827247]
[1745527239131,9.0927223,1765.5,1765.2,5.85331497]
[1745527239528,3.42843306,1765.5,1765.2,5.85331497]
[1745527239838,3.42843306,1765.5,1765.2,5.85317083]
[1745527240670,9.09256217,1765.5,1765.2,5.85317083]
[1745527241472,9.092563,1765.5,1765.2,5.85317083]
[1745527241673,3.42843306,1765.5,1765.2,5.85315837]
[1745527242473,0.42843306,1765.5,1765.3,5.66470002]
[1745527242673,0.41441532,1765.7,1765.5,5.66411781]
[1745527242837,1.8357071,1765.9,1765.6,5.663797]
[1745527243182,1.8357071,1765.9,1765.6,5.848134]
[1745527243383,7.49870394,1765.9,1765.6,0.184337]
[1745527243584,6.42649684,1765.9,1765.6,0.184337]
[1745527244347,5.66299684,1765.9,1765.6,0.184337]
[1745527244578,5.66294779,1765.9,1765.6,7.69432928]
[1745527244781,5.66333255,1765.8,1765.6,0.971737]
[1745527245979,5.66347624,1765.7,1765.6,0.184337]
[1745527246588,5.66347624,1765.7,1765.3,6.45215644]
[1745527246866,5.66347624,1765.7,1765.6,0.18448327]
[1745527247062,7.02446383,1765.7,1765.3,6.45215644]
[1745527247268,7.02446383,1765.7,1765.6,0.18448327]
[1745527247462,7.02446383,1765.7,1765.3,12.1166958]
[1745527247681,7.02446383,1765.7,1765.6,0.18448327]
[1745527247844,7.02446383,1765.7,1765.4,5.66442083]
[1745527248050,5.66347624,1765.7,1765.6,0.18448327]
[1745527248273,5.66347624,1765.7,1765.5,0.18456918]
[1745527248480,5.66347624,1765.7,1765.6,0.18448327]
[1745527248858,5.66347624,1765.7,1765.4,5.66442083]
[1745527249172,5.66347624,1765.7,1765.5,0.18458542]
[1745527249484,7.02446383,1765.7,1765.5,0.18458542]
[1745527249982,7.02446383,1765.7,1765.6,0.18449951]
[1745527250182,7.02446383,1765.7,1765.3,6.45193936]
[1745527250350,7.02446383,1765.7,1765.6,0.18449951]
[1745527250550,7.02446383,1765.7,1765.3,6.45193936]
[1745527250854,7.02446383,1765.7,1765.6,0.18449951]
[1745527251483,7.02446383,1765.7,1765.3,6.45193936]
[1745527251647,5.66347624,1765.7,1765.6,0.18449951]
[1745527251841,5.66347624,1765.7,1765.3,6.45193936]
[1745527251842,11.32725131,1765.7,1765.3,6.45193936]
[1745527252046,5.66347624,1765.7,1765.6,0.18449951]
[1745527252246,11.32725131,1765.7,1765.3,6.45193936]
[1745527252480,5.66347624,1765.7,1765.6,0.18449951]
[1745527252683,12.68823624,1765.7,1765.3,6.45193936]
[1745527252878,5.66382562,1765.6,1765.3,6.45193936]
[1745527253088,5.66384606,1765.6,1765.4,0.18467135]
[1745527253384,5.66347624,1765.7,1765.4,0.18467135]
[1745527253683,5.66381037,1765.6,1765.4,0.18467135]
[1745527257590,5.66347624,1765.7,1765.4,0.18467135]
[1745527257955,5.66390892,1765.6,1765.4,0.18467135]
[1745527259791,11.32721893,1765.7,1765.4,0.18467135]
[1745527260489,5.66385199,1765.6,1765.4,0.18467135]
[1745527261290,4.49687001,1765.8,1765.5,5.66393714]
[1745527261468,3.42466291,1765.8,1765.5,12.14298891]
[1745527261664,9.08792464,1765.8,1765.6,0.18374059]
[1745527262387,14.75136378,1765.8,1765.6,0.18374059]
[1745527262593,5.66347624,1765.7,1765.6,0.18374059]
[1745527264595,14.75134282,1765.8,1765.6,0.18374059]
[1745527265790,9.08792464,1765.8,1765.6,0.18374059]
[1745527265954,14.75136168,1765.8,1765.6,0.18374059]
[1745527266612,9.08792464,1765.8,1765.6,0.18374059]
[1745527267094,5.66347624,1765.7,1765.6,0.18374059]
[1745527268399,9.08792464,1765.8,1765.6,0.18374059]
[1745527268564,3.42466291,1765.8,1765.6,0.18374059]
[1745527268895,9.08783729,1765.8,1765.6,0.18374059]
[1745527270395,14.75127798,1765.8,1765.6,0.18374059]
[1745527271499,5.66347624,1765.7,1765.6,0.18374059]
[1745527271998,9.08783729,1765.8,1765.6,0.18374059]
[1745527272206,14.75122929,1765.8,1765.6,0.18374059]
[1745527272505,5.66347624,1765.7,1765.6,0.18374059]
[1745527273594,8.21081469,1765.7,1765.6,0.18374059]
[1745527274806,6.73568334,1765.7,1765.6,0.18374059]
[1745527280894,5.66421014,1765.5,1765.3,0.7987]
[1745527281431,11.3279236,1765.6,1765.3,0.7987]
[1745527281735,5.66497842,1765.3,1765.1,4.739]
[1745527282031,5.66508044,1765.2,1765.1,4.739]
[1745527284229,6.10052373,1765.2,1764.8,16.995]
[1745527284532,5.66573252,1765.0,1764.8,21.734]
[1745527285602,5.66552454,1765.1,1764.8,21.734]
[1745527285935,1.22164329,1765.2,1764.8,21.734]
[1745527286110,5.6660434,1764.9,1764.8,21.734]
[1745527287302,5.66600646,1765.0,1764.8,21.734]
[1745527289940,5.6660434,1764.9,1764.8,21.734]
[1745527290239,5.6660434,1764.9,1764.8,4.739]
[1745527291542,5.66600646,1765.0,1764.8,4.739]
[1745527291704,5.66575455,1765.0,1764.8,4.739]
[1745527291904,6.73773669,1765.1,1764.8,4.739]
[1745527292419,5.66581479,1765.0,1764.8,4.739]
[1745527293440,5.66581479,1765.0,1764.9,0.13093012]
[1745527293830,5.66581479,1765.0,1764.8,4.739]
[1745527294007,5.66581479,1765.0,1764.9,0.13093012]
[1745527294428,5.66581479,1765.0,1764.8,4.739]
[1745527294640,5.66581479,1765.0,1764.9,0.13093012]
[1745527295427,5.66581479,1765.0,1764.8,4.739]
[1745527295630,5.66581479,1765.0,1764.9,0.13093012]
[1745527296135,5.66581479,1765.0,1764.8,4.739]
[1745527296307,5.66581479,1765.0,1764.9,0.13093012]
[1745527296736,5.66581479,1765.0,1764.8,4.739]
[1745527296906,5.66581479,1765.0,1764.9,0.13390737]
[1745527297308,5.66581479,1765.0,1764.8,4.739]
[1745527297616,5.66581479,1765.0,1764.9,0.13390737]
[1745527298028,5.66581479,1765.0,1764.8,4.739]
[1745527298229,5.66581479,1765.0,1764.9,0.13390737]
[1745527298644,5.66581479,1765.0,1764.8,4.739]
[1745527298935,5.66581479,1765.0,1764.9,0.13390737]
[1745527299147,0.43544329,1765.2,1765.0,6.44608591]
[1745527299445,0.29537583,1765.3,1765.1,0.13373545]
[1745527299737,5.66508044,1765.2,1765.1,0.13373545]
[1745527300341,5.66565585,1765.1,1764.8,5.5195]
[1745527300926,11.33132626,1765.1,1764.8,5.5195]
[1745527301239,5.66572413,1765.0,1764.8,5.5195]
[1745527301433,5.66572413,1765.0,1764.8,4.739]
[1745527301635,5.6660434,1764.9,1764.8,4.739]
[1745527302311,6.08050991,1764.9,1764.8,4.739]
[1745527303517,0.41446651,1764.9,1764.8,4.739]
[1745527303717,6.42252413,1765.0,1764.8,4.739]
[1745527304022,9.87657684,1765.1,1764.8,4.739]
[1745527304230,8.66544421,1765.1,1764.8,4.739]
[1745527304655,14.33112181,1765.1,1764.8,4.739]
[1745527305135,5.66573169,1765.0,1764.8,4.739]
[1745527306654,8.66544421,1765.1,1764.8,4.739]
[1745527307358,14.33111433,1765.1,1764.8,4.739]
[1745527307656,3.0,1765.1,1764.9,5.66588367]
[1745527307817,3.0,1765.1,1764.8,12.27338337]
[1745527308019,8.66546146,1765.1,1764.8,12.27338337]
[1745527308462,8.66546146,1765.1,1764.9,0.12255708]
[1745527308827,8.66546146,1765.1,1764.8,12.27338337]
[1745527309027,8.66546146,1765.1,1765.0,0.1225036]
[1745527309263,8.66546146,1765.1,1764.9,0.12258958]
[1745527309463,8.66546146,1765.1,1765.0,0.12294231]
[1745527309963,8.66546146,1765.1,1765.0,0.12295855]
[1745527310125,8.66546146,1765.1,1764.8,11.23284116]
[1745527310327,5.66574677,1765.0,1764.9,0.12304455]
[1745527310547,6.09935432,1765.0,1764.9,0.12304455]
[1745527310746,6.09935432,1765.0,1764.8,5.5666]
[1745527310954,6.09935432,1765.0,1764.9,0.12304455]
[1745527311134,6.09935432,1765.0,1764.8,5.5666]
[1745527311335,6.09934189,1765.0,1764.9,0.12304455]
[1745527311535,6.09934189,1765.0,1764.8,5.5666]
[1745527311750,6.09934189,1765.0,1764.9,0.12304455]
[1745527311937,6.09934189,1765.0,1764.8,5.5666]
[1745527312146,6.09934189,1765.0,1764.9,0.12304455]
[1745527312371,6.09934189,1765.0,1764.8,5.5666]
[1745527312555,6.09934189,1765.0,1764.9,0.12304455]
[1745527312741,6.09934189,1765.0,1764.8,5.5666]
[1745527313070,6.09934189,1765.0,1764.9,0.12301205]
[1745527313370,0.43360755,1765.0,1764.8,5.5666]
[1745527313543,8.66546146,1765.1,1764.9,0.1230283]
[1745527313743,8.66546146,1765.1,1764.8,5.5666]
[1745527314068,8.66546146,1765.1,1764.9,0.12304455]
[1745527314431,8.66546146,1765.1,1764.8,11.2328749]
[1745527314631,8.66546146,1765.1,1765.0,0.12295855]
[1745527314844,15.95006543,1765.1,1764.9,0.12304455]
[1745527315146,10.28437082,1765.1,1765.0,0.12295855]
[1745527315369,15.95006543,1765.1,1764.8,5.5666]
[1745527315589,16.36481999,1765.1,1764.9,0.12304455]
[1745527315749,5.66573048,1765.0,1764.8,5.5666]
[1745527316078,5.66573048,1765.0,1764.9,0.12304455]
[1745527316446,5.66573048,1765.0,1764.8,5.5666]
[1745527316646,5.66573048,1765.0,1764.9,0.12304455]
[1745527317046,5.66573048,1765.0,1764.8,5.5666]
[1745527317247,5.66573048,1765.0,1764.9,0.12304455]
[1745527317783,1.47459465,1765.0,1764.9,0.12304455]
[1745527317978,14.74593234,1765.1,1764.8,4.739]
[1745527318293,9.08021602,1765.1,1764.9,0.12299581]
[1745527318446,3.41475456,1765.1,1764.9,0.92809581]
[1745527318646,3.41475456,1765.1,1764.9,0.8051]
[1745527318847,3.41475456,1765.1,1765.0,0.12251983]
[1745527319780,9.08015595,1765.1,1765.0,0.12251983]
[1745527320079,3.41475456,1765.1,1765.0,0.12251983]
[1745527321185,9.86325595,1765.1,1765.0,0.12251983]
[1745527321357,13.57032706,1765.1,1764.8,4.739]
[1745527321558,11.91026218,1765.1,1764.9,0.1225652]
[1745527321756,17.5759169,1765.1,1764.8,5.5441]
[1745527322079,17.5759169,1765.1,1764.9,0.1225652]
[1745527322250,11.91026218,1765.1,1764.9,0.1225652]
[1745527322451,17.57592204,1765.1,1764.8,5.5441]
[1745527322653,11.91026218,1765.1,1765.0,0.12247922]
[1745527322987,7.71121924,1765.5,1765.2,5.66508044]
[1745527322988,0.7862,1765.5,1765.2,5.66508044]
[1745527323284,0.7862,1765.5,1765.3,0.12130651]
[1745527323285,5.66415353,1765.5,1765.3,0.12130651]
[1745527323585,3.0,1765.4,1765.3,0.12130651]
[1745527323881,1.07406202,1765.6,1765.3,0.12130651]
[1745527324086,7.8191912,1765.7,1765.3,5.78592721]
[1745527324247,7.8191912,1765.7,1765.3,5.6646207]
[1745527324448,7.8191912,1765.7,1765.4,0.12126124]
[1745527326186,0.2952693,1765.7,1765.5,0.7912]
[1745527326375,0.2952693,1765.7,1765.6,0.12099207]
[1745527326774,0.2952693,1765.7,1765.6,5.78478907]
[1745527326967,0.7862,1765.9,1765.6,5.78478907]
[1745527326968,6.73676084,1766.0,1765.6,7.00878728]
[1745527327167,6.73676084,1766.0,1765.6,5.78478907]
[1745527327363,12.39955157,1766.0,1765.6,5.78478907]
[1745527327569,6.73722996,1765.8,1765.6,0.12099207]
[1745527327769,7.48732996,1765.8,1765.6,0.12099207]
[1745527328558,7.48732996,1765.8,1765.7,0.11862737]
[1745527328789,8.83188776,1765.8,1765.4,6.41420204]
[1745527328990,7.48732996,1765.8,1765.5,5.78282569]
[1745527330593,1.82416202,1765.8,1765.5,5.78282569]
[1745527330792,7.48732556,1765.8,1765.5,5.78282569]
[1745527330997,1.82416202,1765.8,1765.5,11.44672387]
[1745527331173,1.07406202,1765.8,1765.5,11.44672387]
[1745527331371,1.50759244,1765.8,1765.5,5.78269731]
[1745527332399,0.43353042,1765.8,1765.5,0.77369757]
[1745527332570,0.29523719,1765.9,1765.7,5.66347624]
[1745527336202,7.03223428,1765.9,1765.6,5.5591]
[1745527336501,1.36929921,1765.9,1765.6,11.2227623]
[1745527338413,1.36929921,1765.9,1765.7,5.66336697]
[1745527339116,1.78709136,1765.9,1765.7,5.66336697]
[1745527339314,0.71302934,1765.9,1765.7,5.66336697]
[1745527341114,0.71302934,1765.9,1765.6,11.22286875]
[1745527341318,0.71302934,1765.9,1765.6,12.34495556]
[1745527342014,0.71302934,1765.9,1765.6,18.00852943]
[1745527342478,0.71302934,1765.9,1765.6,12.34495556]
[1745527343623,6.37595397,1765.9,1765.6,12.34495556]
[1745527350823,3.0,1765.8,1765.6,11.22266869]
[1745527351402,3.0,1765.8,1765.6,11.22282376]
[1745527353535,3.0,1765.8,1765.6,5.5591]
[1745527353733,3.0,1765.8,1765.6,11.22282435]
[1745527355212,3.0,1765.8,1765.6,5.5591]
[1745527355413,3.0,1765.8,1765.6,11.22283215]
[1745527355822,3.0,1765.8,1765.6,4.738]
[1745527356109,8.66330284,1765.8,1765.6,4.738]
[1745527356317,11.31991054,1765.8,1765.6,4.738]
[1745527356634,9.73736486,1765.8,1765.6,4.738]
[1745527360337,3.0,1765.8,1765.6,10.40176059]
[1745527360635,3.0,1765.8,1765.6,4.738]
[1745527364549,3.0,1765.8,1765.6,10.40175968]
[1745527368352,3.0,1765.8,1765.7,4.735]
[1745527376163,5.66388898,1765.6,1765.4,4.735]
[1745527376371,2.04506403,1765.5,1765.4,4.735]
[1745527381318,8.66464614,1765.4,1765.1,4.734]
[1745527381523,5.04506403,1765.2,1765.1,4.734]
[1745527382737,5.46056966,1765.2,1765.1,4.734]
[1745527383863,5.46056966,1765.2,1765.1,4.84087938]
[1745527384764,11.1256501,1765.2,1765.1,4.84087938]
[1745527391368,5.46056966,1765.2,1765.1,4.84087938]
[1745527391569,11.1256501,1765.2,1765.1,4.84087938]
[1745527392452,5.46056966,1765.2,1765.1,4.84087938]
[1745527393980,11.1256501,1765.2,1765.1,4.84087938]
[1745527404708,5.46056966,1765.2,1765.1,4.84087938]
[1745527405006,11.61909606,1765.8,1765.3,5.66466497]
[1745527405007,2.04506403,1765.6,1765.3,5.66466497]
[1745527405215,2.04506403,1765.5,1765.2,0.7837]
[1745527405500,5.04506403,1765.4,1765.3,0.10794958]
[1745527406703,10.70950268,1765.4,1765.3,0.10794958]
[1745527407070,18.01157023,1765.4,1765.1,5.5626]
[1745527407273,10.72735881,1765.4,1765.3,0.10794958]
[1745527407471,12.77242284,1765.4,1765.1,5.5626]
[1745527407673,11.13504091,1765.4,1765.3,0.10794958]
[1745527407984,5.47060226,1765.4,1765.1,11.22799916]
[1745527408200,5.47060226,1765.4,1765.3,0.10794958]
[1745527408684,5.47060226,1765.4,1765.1,11.22799916]
[1745527408685,5.47060226,1765.4,1765.1,16.89322667]
[1745527408998,5.47060226,1765.4,1765.3,0.10794958]
[1745527409198,5.47060226,1765.4,1765.2,0.10803553]
[1745527409371,5.47060226,1765.4,1765.3,0.10794958]
[1745527412716,5.47060226,1765.4,1765.3,5.77270911]
[1745527412881,5.47060226,1765.4,1765.3,0.10794958]
[1745527415080,6.23650226,1765.4,1765.1,5.5626]
[1745527415282,2.04506403,1765.2,1765.1,4.734]
[1745527418608,3.0,1765.3,1765.1,11.16280139]
[1745527418781,3.0,1765.3,1765.1,16.82800263]
[1745527419306,3.0,1765.3,1765.1,11.16260124]
[1745527426718,3.0,1765.3,1765.1,5.4974]
[1745527426925,2.04506403,1765.2,1765.1,4.734]
[1745527429721,2.04506403,1765.2,1764.9,4.734]
[1745527429722,7.71025919,1765.2,1764.9,4.734]
[1745527429900,3.0,1765.1,1764.9,4.734]
[1745527430419,2.04506403,1765.0,1764.9,4.734]
[1745527436338,5.04506403,1765.2,1765.0,6.45312237]
[1745527436716,5.04506403,1765.2,1765.0,0.7874]
[1745527437632,5.04506403,1765.2,1765.0,6.45293598]
[1745527441013,5.04506403,1765.2,1765.0,0.7874]
[1745527441852,5.04506403,1765.2,1764.9,10.39988347]
[1745527442745,5.04506403,1765.2,1764.9,16.06571551]
[1745527442940,5.04506403,1765.2,1764.9,17.75477706]
[1745527443236,5.04506403,1765.2,1764.9,12.08889359]
[1745527443749,5.04506403,1765.2,1765.0,5.66565097]
[1745527444042,5.04506403,1765.2,1764.9,12.08889359]
[1745527446952,3.0,1765.2,1764.9,12.08889359]
[1745527447154,0.42553823,1765.4,1765.2,5.66489689]
[1745527447336,0.42553823,1765.4,1765.2,6.41657663]
[1745527447509,3.0,1765.5,1765.2,6.41657663]
[1745527447709,5.04506403,1765.5,1765.2,6.41657663]
[1745527448747,10.70922827,1765.5,1765.2,6.41657663]
[1745527449257,11.12592325,1765.5,1765.2,6.41657663]
[1745527450051,5.46175901,1765.5,1765.2,6.41657663]
[1745527450676,11.12588679,1765.5,1765.2,6.41657663]
[1745527451873,2.04506403,1765.4,1765.2,6.41657663]
[1745527453163,5.46175901,1765.5,1765.2,7.62476874]
[1745527453467,3.0,1765.5,1765.3,10.39772756]
[1745527453669,2.04506403,1765.7,1765.5,5.66411781]
[1745527453965,5.04506403,1765.7,1765.5,5.66411781]
[1745527454405,2.04506403,1765.6,1765.4,6.46653865]
[1745527454573,2.04506403,1765.6,1765.4,2.48851163]
[1745527454735,2.04506403,1765.6,1765.4,8.15294742]
[1745527456974,2.04506403,1765.6,1765.4,8.15275971]
[1745527460279,2.04506403,1765.5,1765.4,8.15275971]
[1745527461379,2.04506403,1765.6,1765.4,8.15275971]
[1745527463975,2.04506403,1765.6,1765.4,7.35065971]
[1745527464177,2.04506403,1765.6,1765.4,5.66424808]
[1745527464377,2.04506403,1765.5,1765.4,5.66424808]
[1745527466195,7.70936388,1765.5,1765.3,4.733]
[1745527466387,5.66443865,1765.4,1765.3,4.733]
[1745527468217,7.70950268,1765.4,1765.3,4.733]
[1745527469101,2.04506403,1765.4,1765.3,4.733]
[1745527470170,12.83307497,1765.4,1765.3,4.733]
[1745527476504,8.66484611,1765.3,1765.0,6.43970043]
[1745527476809,2.04506403,1765.2,1765.1,4.731]
[1745527484130,2.47334777,1765.2,1765.1,4.731]
[1745527489444,2.47334777,1765.2,1765.1,10.39640139]
[1745527490951,2.47334777,1765.2,1765.1,4.731]
[1745527491620,2.04506403,1765.2,1765.1,4.731]
[1745527493559,2.477432,1765.2,1765.1,4.731]
[1745527498377,8.14251244,1765.2,1765.1,4.731]
[1745527498533,5.66656357,1764.8,1764.6,4.732]
[1745527498731,10.71174958,1764.7,1764.6,4.732]
[1745527499558,11.49794958,1764.7,1764.6,4.732]
[1745527502071,10.71174958,1764.7,1764.6,4.732]
[1745527502974,5.04506403,1764.7,1764.6,4.732]
[1745527503879,3.0,1764.7,1764.6,4.732]
[1745527504185,3.41447636,1764.7,1764.6,4.732]
[1745527504756,3.0,1764.7,1764.6,4.732]
[1745527505353,3.0,1764.7,1764.6,10.39900668]
[1745527505551,2.04506403,1765.0,1764.6,6.21643303]
[1745527505753,0.43236797,1765.2,1764.9,5.66589593]
[1745527505960,2.3404781,1765.3,1765.0,5.66558853]
[1745527506159,0.29541407,1765.3,1765.1,0.8264]
[1745527506388,5.66452487,1765.4,1765.1,6.4916867]
[1745527506587,2.04506403,1765.4,1765.1,6.4916867]
[1745527506786,2.04506403,1765.5,1765.2,5.66508031]
[1745527507257,5.04506403,1765.5,1765.2,5.66508031]
[1745527507456,10.7091854,1765.5,1765.2,5.66508031]
[1745527507869,5.04506403,1765.4,1765.1,8.18044231]
[1745527508181,5.04506403,1765.4,1765.1,2.51522142]
[1745527508182,11.14329728,1765.4,1765.1,2.51522142]
[1745527508375,11.14329728,1765.4,1765.1,0.8264]
[1745527508376,2.04506403,1765.3,1765.1,0.8264]
[1745527508578,7.70984937,1765.3,1765.1,0.8264]
[1745527508884,2.04506403,1765.3,1765.1,0.8264]
[1745527509086,2.36250422,1765.3,1765.1,0.8264]
[1745527509287,0.31744019,1765.3,1765.1,0.8264]
[1745527510182,5.98230757,1765.3,1765.1,0.8264]
[1745527510374,1.07429307,1765.2,1765.0,4.731]
[1745527510685,5.66540139,1765.1,1765.0,4.731]
[1745527510891,9.74824158,1765.1,1765.0,4.731]
[1745527514091,5.66648062,1764.8,1764.6,4.731]
[1745527514259,0.56664806,1764.7,1764.6,4.731]
[1745527514460,0.41700658,1764.7,1764.6,4.731]
[1745527514660,4.07429307,1764.8,1764.6,4.731]
[1745527515175,9.7407809,1764.8,1764.6,4.731]
[1745527516192,4.07429307,1764.8,1764.6,4.731]
[1745527516394,9.74072695,1764.8,1764.6,4.731]
[1745527516989,4.07429307,1764.8,1764.6,4.731]
[1745527518590,4.39171068,1764.8,1764.6,4.731]
[1745527519294,10.05817058,1764.8,1764.6,4.731]
[1745527519597,4.39171068,1764.8,1764.6,4.731]
[1745527519800,4.80884473,1764.8,1764.6,4.731]
[1745527519985,10.47522994,1764.8,1764.6,4.731]
[1745527520394,4.49142712,1764.8,1764.6,4.731]
[1745527522373,4.80881943,1764.8,1764.6,4.731]
[1745527523305,10.15783167,1764.8,1764.6,4.731]
[1745527524309,4.49142712,1764.8,1764.6,4.731]
[1745527524600,3.41713405,1764.8,1764.6,10.39777108]
[1745527531624,3.0,1764.8,1764.6,10.39777108]
[1745527534894,3.0,1764.8,1764.6,4.731]
[1745527535819,3.0,1764.8,1764.6,10.39796249]
[1745527536025,3.0,1764.8,1764.6,10.39780717]
[1745527536227,0.41660528,1764.9,1764.7,6.49208555]
[1745527536430,14.33187619,1765.0,1764.7,0.8254]
[1745527536731,0.3177322,1764.9,1764.7,0.8254]
[1745527537520,3.3177322,1764.8,1764.7,0.8254]
[1745527539000,0.3177322,1764.8,1764.7,0.8254]
[1745527539336,0.3177322,1764.8,1764.7,6.49208555]
[1745527543735,0.3177322,1764.8,1764.7,11.22208555]
[1745527545158,0.3177322,1764.8,1764.7,13.08420583]
[1745527546448,2.36413838,1765.1,1764.9,5.66601463]
[1745527547139,2.78319166,1765.1,1764.9,5.66601463]
[1745527547307,0.3177322,1765.0,1764.9,5.66601463]
[1745527548241,0.3177322,1765.0,1764.8,5.6663592]
[1745527548413,0.3177322,1765.0,1764.8,5.66625192]
[1745527548736,9.73957059,1765.2,1764.8,5.66615529]
[1745527548907,11.35788343,1765.2,1764.8,11.33230733]
[1745527549503,0.31818231,1765.1,1764.8,11.33230733]
[1745527549922,0.31818231,1765.1,1764.9,5.66602072]
[1745527550630,0.31818231,1765.0,1764.9,5.66602072]
[1745527557952,0.42023077,1765.1,1764.9,5.66602072]
[1745527558159,4.074478,1765.2,1764.9,11.33204144]
[1745527558362,4.074478,1765.2,1765.0,5.66557526]
[1745527559069,0.31804878,1765.1,1765.0,5.66557526]
[1745527562055,0.31804878,1765.1,1764.9,12.12619036]
[1745527562358,0.31804878,1765.1,1764.9,6.4603227]
[1745527563051,0.31804878,1765.0,1764.9,6.4603227]
[1745527564068,0.31804878,1765.0,1764.9,5.6658227]